[Event "Titled Tuesday Blitz October 31 Early 2023"]
[White "Pakleza, Zbigniew"]
[Black "Le, Tuan Minh"]
[WhiteFideId "1119290"]
[BlackFideId "12401153"]
[WhiteElo "2816"]
[BlackElo "2988"]
[Result "1-0"]
[Round "5"]
[TimeControl "180+1"]
[Date "2023.10.31"]
[WhiteClock "0:00:04"]
[BlackClock "0:00:00"]
[Board "7"]

1. d4 {[%clk 0:03:00]}  d5 {[%clk 0:02:53]} 2. Bf4 {[%clk 0:02:58]}  Nf6 {[%clk 0:02:53]} 3. e3 {[%clk 0:02:59]}  c5 {[%clk 0:02:53]} 4. c3 {[%clk 0:02:59]}  Qb6 {[%clk 0:02:53]} 5. Qb3 {[%clk 0:02:59]}  Nc6 {[%clk 0:02:51]} 6. Nd2 {[%clk 0:02:58]}  cxd4 {[%clk 0:02:49]} 7. exd4 {[%clk 0:02:46]}  Bf5 {[%clk 0:02:49]} 8. Ngf3 {[%clk 0:02:43]}  e6 {[%clk 0:02:49]} 9. Qxb6 {[%clk 0:02:39]}  axb6 {[%clk 0:02:49]} 10. Bb5 {[%clk 0:02:40]}  Nd7 {[%clk 0:02:45]} 11. O-O {[%clk 0:02:34]}  Be7 {[%clk 0:02:43]} 12. Rfe1 {[%clk 0:02:35]}  O-O {[%clk 0:02:42]} 13. h3 {[%clk 0:02:34]}  h6 {[%clk 0:02:42]} 14. a3 {[%clk 0:02:29]}  Rfc8 {[%clk 0:02:40]} 15. Nf1 {[%clk 0:02:20]}  Nf6 {[%clk 0:02:37]} 16. g4 {[%clk 0:02:14]}  Bh7 {[%clk 0:02:33]} 17. Ne5 {[%clk 0:02:11]}  Na5 {[%clk 0:02:08]} 18. Re2 {[%clk 0:02:00]}  Nc4 {[%clk 0:01:33]} 19. Bh2 {[%clk 0:01:17]}  Ra5 {[%clk 0:01:29]} 20. Bxc4 {[%clk 0:01:16]}  dxc4 {[%clk 0:01:29]} 21. Rae1 {[%clk 0:01:11]}  Nd5 {[%clk 0:01:18]} 22. Ne3 {[%clk 0:01:07]}  Nxe3 {[%clk 0:01:18]} 23. Rxe3 {[%clk 0:01:00]}  Rd5 {[%clk 0:01:18]} 24. f4 {[%clk 0:00:57]}  Bf8 {[%clk 0:01:10]} 25. Kf2 {[%clk 0:00:56]}  b5 {[%clk 0:01:08]} 26. Bg3 {[%clk 0:00:55]}  Ra8 {[%clk 0:00:55]} 27. Nf3 {[%clk 0:00:53]}  Ra6 {[%clk 0:00:50]} 28. Re5 {[%clk 0:00:46]}  Rxe5 {[%clk 0:00:22]} 29. Rxe5 {[%clk 0:00:33]}  b4 {[%clk 0:00:22]} 30. axb4 {[%clk 0:00:23]}  Ra2 {[%clk 0:00:21]} 31. Re2 {[%clk 0:00:23]}  Bd3 {[%clk 0:00:20]} 32. Rd2 {[%clk 0:00:22]}  Bxb4 {[%clk 0:00:21]} 33. Ke3 {[%clk 0:00:09]}  Bd6 {[%clk 0:00:21]} 34. Ne5 {[%clk 0:00:06]}  Bxe5 {[%clk 0:00:21]} 35. dxe5 {[%clk 0:00:04]}  Ra1 {[%clk 0:00:16]} 36. Kd4 {[%clk 0:00:02]}  Rh1 {[%clk 0:00:15]} 37. Bh2 {[%clk 0:00:02]}  Rf1 {[%clk 0:00:10]} 38. Kc5 {[%clk 0:00:03]}  Rf3 {[%clk 0:00:11]} 39. h4 {[%clk 0:00:02]}  h5 {[%clk 0:00:12]} 40. gxh5 {[%clk 0:00:02]}  Kh7 {[%clk 0:00:12]} 41. Kb6 {[%clk 0:00:02]}  Kh6 {[%clk 0:00:11]} 42. Kxb7 {[%clk 0:00:02]}  Kxh5 {[%clk 0:00:12]} 43. Kc6 {[%clk 0:00:02]}  Kxh4 {[%clk 0:00:11]} 44. Kd6 {[%clk 0:00:02]}  Bg6 {[%clk 0:00:05]} 45. Kc5 {[%clk 0:00:02]}  Bd3 {[%clk 0:00:04]} 46. Kd6 {[%clk 0:00:03]}  Kg4 {[%clk 0:00:05]} 47. Rg2+ {[%clk 0:00:02]}  Kf5 {[%clk 0:00:04]} 48. Rxg7 {[%clk 0:00:02]}  Rf2 {[%clk 0:00:05]} 49. Rxf7+ {[%clk 0:00:03]}  Kg4 {[%clk 0:00:05]} 50. Bg1 {[%clk 0:00:02]}  Rxb2 {[%clk 0:00:05]} 51. Kxe6 {[%clk 0:00:02]}  Kf3 {[%clk 0:00:03]} 52. Bd4 {[%clk 0:00:02]}  Ke4 {[%clk 0:00:03]} 53. Kd6 {[%clk 0:00:02]}  Ra2 {[%clk 0:00:03]} 54. e6 {[%clk 0:00:02]}  Ra6+ {[%clk 0:00:04]} 55. Ke7 {[%clk 0:00:03]}  Kd5 {[%clk 0:00:04]} 56. Rf6 {[%clk 0:00:03]}  Rc6 {[%clk 0:00:03]} 57. Kf7 {[%clk 0:00:03]}  Be2 {[%clk 0:00:03]} 58. Rf5+ {[%clk 0:00:02]}  Kd6 {[%clk 0:00:02]} 59. e7 {[%clk 0:00:03]}  Rc7 {[%clk 0:00:02]} 60. Be5+ {[%clk 0:00:03]}  Kd7 {[%clk 0:00:00]} 61. Bxc7 {[%clk 0:00:04]} 1-0


[Site "https://www.chess.com"]

[Event "Titled Tuesday Blitz October 31 Early 2023"]
[White "Martinez Alcantara, Jose Eduardo"]
[Black "Klukin, Kirill"]
[WhiteFideId "3805662"]
[BlackFideId "24199273"]
[WhiteElo "3140"]
[BlackElo "2853"]
[Result "1/2-1/2"]
[Round "5"]
[TimeControl "180+1"]
[Date "2023.10.31"]
[WhiteClock "0:01:09"]
[BlackClock "0:00:27"]
[Board "9"]

1. e4 {[%clk 0:03:00]}  c5 {[%clk 0:02:59]} 2. Nf3 {[%clk 0:03:01]}  g6 {[%clk 0:02:59]} 3. c3 {[%clk 0:03:02]}  Bg7 {[%clk 0:02:56]} 4. d4 {[%clk 0:03:01]}  cxd4 {[%clk 0:02:57]} 5. cxd4 {[%clk 0:03:02]}  d5 {[%clk 0:02:57]} 6. e5 {[%clk 0:03:02]}  a6 {[%clk 0:02:58]} 7. h3 {[%clk 0:03:03]}  Nc6 {[%clk 0:02:58]} 8. Nc3 {[%clk 0:03:01]}  f6 {[%clk 0:02:59]} 9. exf6 {[%clk 0:03:01]}  Nxf6 {[%clk 0:03:00]} 10. Be3 {[%clk 0:03:01]}  O-O {[%clk 0:03:00]} 11. Bd3 {[%clk 0:02:49]}  Nh5 {[%clk 0:02:54]} 12. O-O {[%clk 0:02:49]}  Nf4 {[%clk 0:02:52]} 13. Re1 {[%clk 0:02:47]}  Nxd3 {[%clk 0:02:42]} 14. Qxd3 {[%clk 0:02:48]}  Bxh3 {[%clk 0:02:41]} 15. Bg5 {[%clk 0:02:48]}  Bg4 {[%clk 0:02:19]} 16. Ne5 {[%clk 0:02:49]}  Nxe5 {[%clk 0:01:48]} 17. dxe5 {[%clk 0:02:50]}  Be6 {[%clk 0:01:48]} 18. Ne2 {[%clk 0:02:42]}  Qd7 {[%clk 0:01:40]} 19. Nd4 {[%clk 0:02:41]}  Bf5 {[%clk 0:01:35]} 20. Qg3 {[%clk 0:02:38]}  e6 {[%clk 0:01:32]} 21. b3 {[%clk 0:02:17]}  Rac8 {[%clk 0:01:32]} 22. Rac1 {[%clk 0:02:17]}  Rxc1 {[%clk 0:01:24]} 23. Bxc1 {[%clk 0:02:18]}  Rc8 {[%clk 0:01:03]} 24. Bg5 {[%clk 0:02:17]}  Qf7 {[%clk 0:01:01]} 25. Be3 {[%clk 0:01:58]}  h6 {[%clk 0:00:59]} 26. f4 {[%clk 0:01:47]}  Be4 {[%clk 0:00:56]} 27. Qg4 {[%clk 0:01:47]}  Bf5 {[%clk 0:00:56]} 28. Qg3 {[%clk 0:01:48]}  Kh7 {[%clk 0:00:52]} 29. Bd2 {[%clk 0:01:43]}  Bf8 {[%clk 0:00:51]} 30. Kh2 {[%clk 0:01:33]}  Be4 {[%clk 0:00:29]} 31. Qh3 {[%clk 0:01:28]}  Bf5 {[%clk 0:00:29]} 32. Qg3 {[%clk 0:01:14]}  Rc7 {[%clk 0:00:28]} 33. Ba5 {[%clk 0:01:09]}  Rc8 {[%clk 0:00:27]} 34. Bd2 {[%clk 0:01:09]} 1/2-1/2


[Site "https://www.chess.com"]

[Event "Titled Tuesday Blitz October 31 Early 2023"]
[White "Bharath Subramaniyam H"]
[Black "Theodorou, Nikolas"]
[WhiteFideId "46634827"]
[BlackFideId "4262875"]
[WhiteElo "2909"]
[BlackElo "3005"]
[Result "0-1"]
[Round "5"]
[TimeControl "180+1"]
[Date "2023.10.31"]
[WhiteClock "0:00:06"]
[BlackClock "0:01:16"]
[Board "10"]

1. e4 {[%clk 0:03:00]}  b6 {[%clk 0:02:58]} 2. d4 {[%clk 0:03:00]}  Bb7 {[%clk 0:02:58]} 3. Nc3 {[%clk 0:03:01]}  d6 {[%clk 0:02:58]} 4. g3 {[%clk 0:02:59]}  Nd7 {[%clk 0:02:58]} 5. Bg2 {[%clk 0:02:59]}  e5 {[%clk 0:02:59]} 6. d5 {[%clk 0:02:59]}  g6 {[%clk 0:02:59]} 7. Nge2 {[%clk 0:02:59]}  h5 {[%clk 0:03:00]} 8. Be3 {[%clk 0:02:50]}  h4 {[%clk 0:02:59]} 9. Qd2 {[%clk 0:02:28]}  Ngf6 {[%clk 0:02:56]} 10. Bg5 {[%clk 0:02:17]}  h3 {[%clk 0:02:52]} 11. Bf3 {[%clk 0:02:16]}  Be7 {[%clk 0:02:50]} 12. Be3 {[%clk 0:02:14]}  c6 {[%clk 0:02:50]} 13. dxc6 {[%clk 0:02:12]}  Bxc6 {[%clk 0:02:51]} 14. O-O-O {[%clk 0:02:11]}  Rc8 {[%clk 0:02:50]} 15. g4 {[%clk 0:02:00]}  b5 {[%clk 0:02:43]} 16. g5 {[%clk 0:01:56]}  Nh7 {[%clk 0:02:43]} 17. Rhg1 {[%clk 0:01:54]}  b4 {[%clk 0:02:36]} 18. Nd5 {[%clk 0:01:53]}  Bxd5 {[%clk 0:02:37]} 19. exd5 {[%clk 0:01:50]}  Nb6 {[%clk 0:02:37]} 20. Bg4 {[%clk 0:01:43]}  Nc4 {[%clk 0:02:36]} 21. Qxb4 {[%clk 0:01:43]}  Nxe3 {[%clk 0:02:36]} 22. fxe3 {[%clk 0:01:39]}  Rc5 {[%clk 0:02:37]} 23. Qa4+ {[%clk 0:01:35]}  Kf8 {[%clk 0:02:37]} 24. Qxa7 {[%clk 0:01:33]}  Bxg5 {[%clk 0:02:37]} 25. Rg3 {[%clk 0:01:28]}  Nf6 {[%clk 0:02:36]} 26. Rf1 {[%clk 0:01:20]}  Rh7 {[%clk 0:02:34]} 27. Rxh3 {[%clk 0:01:07]}  Rc7 {[%clk 0:02:06]} 28. Qa6 {[%clk 0:00:52]}  Rxh3 {[%clk 0:02:00]} 29. Bxh3 {[%clk 0:00:53]}  Nxd5 {[%clk 0:02:00]} 30. Kb1 {[%clk 0:00:45]}  Nxe3 {[%clk 0:01:58]} 31. Rc1 {[%clk 0:00:39]}  Nc4 {[%clk 0:01:57]} 32. Rd1 {[%clk 0:00:39]}  Nd2+ {[%clk 0:01:49]} 33. Kc1 {[%clk 0:00:40]}  Rc5 {[%clk 0:01:31]} 34. Bg2 {[%clk 0:00:28]}  Ra5 {[%clk 0:01:27]} 35. Qb7 {[%clk 0:00:17]}  Rxa2 {[%clk 0:01:25]} 36. c3 {[%clk 0:00:17]}  Nc4+ {[%clk 0:01:23]} 37. Kb1 {[%clk 0:00:17]}  Rxb2+ {[%clk 0:01:23]} 38. Qxb2 {[%clk 0:00:17]}  Nxb2 {[%clk 0:01:24]} 39. Kxb2 {[%clk 0:00:18]}  Qb6+ {[%clk 0:01:25]} 40. Kc2 {[%clk 0:00:16]}  Qf2 {[%clk 0:01:26]} 41. Bf1 {[%clk 0:00:17]}  d5 {[%clk 0:01:21]} 42. Kb3 {[%clk 0:00:17]}  Kg7 {[%clk 0:01:21]} 43. Ng3 {[%clk 0:00:17]}  Qxh2 {[%clk 0:01:18]} 44. Ne2 {[%clk 0:00:16]}  Qf2 {[%clk 0:01:17]} 45. c4 {[%clk 0:00:12]}  Qb6+ {[%clk 0:01:15]} 46. Kc3 {[%clk 0:00:09]}  Qa5+ {[%clk 0:01:15]} 47. Kb3 {[%clk 0:00:09]}  dxc4+ {[%clk 0:01:16]} 48. Kc2 {[%clk 0:00:06]}  Qa4+ {[%clk 0:01:16]} 0-1


[Site "https://www.chess.com"]

[Event "Titled Tuesday Blitz October 31 Early 2023"]
[White "Elsa167"]
[Black "Karthik Rajaa"]
[BlackFideId "25035215"]
[WhiteElo "2990"]
[BlackElo "2731"]
[Result "1-0"]
[Round "5"]
[TimeControl "180+1"]
[Date "2023.10.31"]
[WhiteClock "0:00:14"]
[BlackClock "0:00:04"]
[Board "15"]

1. d4 {[%clk 0:03:00]}  Nf6 {[%clk 0:02:58]} 2. c4 {[%clk 0:03:01]}  g6 {[%clk 0:02:57]} 3. Nc3 {[%clk 0:03:01]}  Bg7 {[%clk 0:02:57]} 4. e4 {[%clk 0:03:02]}  d6 {[%clk 0:02:57]} 5. h3 {[%clk 0:03:02]}  O-O {[%clk 0:02:56]} 6. Be3 {[%clk 0:03:02]}  e5 {[%clk 0:02:55]} 7. d5 {[%clk 0:03:02]}  Na6 {[%clk 0:02:53]} 8. g4 {[%clk 0:03:03]}  Nc5 {[%clk 0:02:53]} 9. f3 {[%clk 0:03:03]}  c6 {[%clk 0:02:52]} 10. Qd2 {[%clk 0:03:00]}  a5 {[%clk 0:02:08]} 11. Nge2 {[%clk 0:02:58]}  a4 {[%clk 0:02:06]} 12. Ng3 {[%clk 0:02:56]}  cxd5 {[%clk 0:02:03]} 13. cxd5 {[%clk 0:02:57]}  Qa5 {[%clk 0:02:04]} 14. h4 {[%clk 0:02:56]}  b5 {[%clk 0:01:49]} 15. Nxb5 {[%clk 0:02:51]}  Qb6 {[%clk 0:01:41]} 16. Rc1 {[%clk 0:02:49]}  Nfd7 {[%clk 0:01:40]} 17. h5 {[%clk 0:02:20]}  Ba6 {[%clk 0:01:39]} 18. Na3 {[%clk 0:02:20]}  Bxf1 {[%clk 0:01:26]} 19. Kxf1 {[%clk 0:02:21]}  Rab8 {[%clk 0:01:19]} 20. Nc4 {[%clk 0:02:20]}  Qa6 {[%clk 0:01:19]} 21. Kg2 {[%clk 0:02:17]}  Rfc8 {[%clk 0:01:14]} 22. Rc2 {[%clk 0:01:52]}  Nxe4 {[%clk 0:01:08]} 23. Nxe4 {[%clk 0:01:44]}  Rxc4 {[%clk 0:01:08]} 24. Rhc1 {[%clk 0:01:04]}  Rxc2 {[%clk 0:01:07]} 25. Rxc2 {[%clk 0:01:01]}  Nf6 {[%clk 0:00:34]} 26. h6 {[%clk 0:00:41]}  Nxe4 {[%clk 0:00:31]} 27. fxe4 {[%clk 0:00:42]}  Bf8 {[%clk 0:00:31]} 28. g5 {[%clk 0:00:40]}  Qb5 {[%clk 0:00:27]} 29. Kf3 {[%clk 0:00:39]}  Qf1+ {[%clk 0:00:26]} 30. Kg3 {[%clk 0:00:37]}  Qh1 {[%clk 0:00:23]} 31. Qg2 {[%clk 0:00:32]}  Qb1 {[%clk 0:00:20]} 32. Qf2 {[%clk 0:00:15]}  Qxa2 {[%clk 0:00:19]} 33. Rc7 {[%clk 0:00:13]}  f5 {[%clk 0:00:13]} 34. gxf6 {[%clk 0:00:13]}  Rxb2 {[%clk 0:00:04]} 35. f7+ {[%clk 0:00:14]} 1-0


[Site "https://www.chess.com"]

[Event "Titled Tuesday Blitz October 31 Early 2023"]
[White "Kosteniuk, Alexandra"]
[Black "Oparin, Grigoriy"]
[WhiteFideId "4128125"]
[BlackFideId "24125890"]
[WhiteElo "2726"]
[BlackElo "2985"]
[Result "0-1"]
[Round "5"]
[TimeControl "180+1"]
[Date "2023.10.31"]
[WhiteClock "0:00:00"]
[BlackClock "0:00:18"]
[Board "16"]

1. e4 {[%clk 0:03:00]}  c6 {[%clk 0:03:00]} 2. d4 {[%clk 0:02:56]}  d5 {[%clk 0:03:01]} 3. e5 {[%clk 0:02:57]}  c5 {[%clk 0:03:02]} 4. dxc5 {[%clk 0:02:57]}  e6 {[%clk 0:03:02]} 5. Nf3 {[%clk 0:02:52]}  Bxc5 {[%clk 0:03:02]} 6. Bd3 {[%clk 0:02:43]}  Ne7 {[%clk 0:03:02]} 7. O-O {[%clk 0:02:43]}  Ng6 {[%clk 0:03:01]} 8. Nbd2 {[%clk 0:02:41]}  Nc6 {[%clk 0:02:56]} 9. Nb3 {[%clk 0:02:41]}  Be7 {[%clk 0:02:53]} 10. Re1 {[%clk 0:02:39]}  O-O {[%clk 0:02:53]} 11. Nbd4 {[%clk 0:02:34]}  Bd7 {[%clk 0:02:46]} 12. c3 {[%clk 0:02:33]}  a6 {[%clk 0:02:33]} 13. g3 {[%clk 0:02:31]}  Nxd4 {[%clk 0:02:20]} 14. Nxd4 {[%clk 0:02:27]}  Bc5 {[%clk 0:02:07]} 15. h4 {[%clk 0:02:05]}  f5 {[%clk 0:02:07]} 16. h5 {[%clk 0:01:46]}  Ne7 {[%clk 0:02:07]} 17. Nc2 {[%clk 0:01:32]}  h6 {[%clk 0:01:55]} 18. Bf4 {[%clk 0:01:14]}  Bb5 {[%clk 0:01:46]} 19. Bxb5 {[%clk 0:01:11]}  axb5 {[%clk 0:01:47]} 20. Qd2 {[%clk 0:01:11]}  Nc6 {[%clk 0:01:45]} 21. a3 {[%clk 0:01:03]}  Ra4 {[%clk 0:01:43]} 22. b4 {[%clk 0:00:59]}  Ba7 {[%clk 0:01:34]} 23. Kg2 {[%clk 0:00:59]}  Qd7 {[%clk 0:01:18]} 24. Rad1 {[%clk 0:00:58]}  Rc8 {[%clk 0:01:14]} 25. Qd3 {[%clk 0:00:56]}  Ne7 {[%clk 0:01:10]} 26. Kh2 {[%clk 0:00:37]}  Rc4 {[%clk 0:01:09]} 27. f3 {[%clk 0:00:28]}  Bb6 {[%clk 0:01:07]} 28. Bc1 {[%clk 0:00:19]}  Ra8 {[%clk 0:01:07]} 29. Bb2 {[%clk 0:00:18]}  Qe8 {[%clk 0:01:03]} 30. Kg2 {[%clk 0:00:17]}  Qxh5 {[%clk 0:01:03]} 31. Rh1 {[%clk 0:00:16]}  Qf7 {[%clk 0:00:58]} 32. f4 {[%clk 0:00:13]}  Rac8 {[%clk 0:00:56]} 33. Ne1 {[%clk 0:00:13]}  Ng6 {[%clk 0:00:54]} 34. Qd2 {[%clk 0:00:10]}  Re4 {[%clk 0:00:27]} 35. Nf3 {[%clk 0:00:09]}  Rcc4 {[%clk 0:00:28]} 36. Rhe1 {[%clk 0:00:09]}  Nxf4+ {[%clk 0:00:22]} 37. gxf4 {[%clk 0:00:08]}  Qg6+ {[%clk 0:00:22]} 38. Kf1 {[%clk 0:00:07]}  Rxf4 {[%clk 0:00:22]} 39. Qg2 {[%clk 0:00:06]}  Rg4 {[%clk 0:00:21]} 40. Qh2 {[%clk 0:00:05]}  Rcf4 {[%clk 0:00:21]} 41. Rd3 {[%clk 0:00:05]}  Rg1+ {[%clk 0:00:19]} 42. Qxg1 {[%clk 0:00:00]}  Qxg1+ {[%clk 0:00:18]} 0-1


[Site "https://www.chess.com"]

[Event "Titled Tuesday Blitz October 31 Early 2023"]
[White "Zhigalko, Sergei"]
[Black "Kislinsky, Alexey"]
[WhiteFideId "13502956"]
[BlackFideId "14108801"]
[WhiteElo "2959"]
[BlackElo "2725"]
[Result "0-1"]
[Round "5"]
[TimeControl "180+1"]
[Date "2023.10.31"]
[WhiteClock "0:00:00"]
[BlackClock "0:00:08"]
[Board "18"]

1. e4 {[%clk 0:03:00]}  c5 {[%clk 0:02:56]} 2. Nf3 {[%clk 0:03:00]}  Nc6 {[%clk 0:02:55]} 3. c3 {[%clk 0:03:01]}  Nf6 {[%clk 0:02:47]} 4. e5 {[%clk 0:03:01]}  Nd5 {[%clk 0:02:47]} 5. Bc4 {[%clk 0:03:02]}  Nb6 {[%clk 0:02:46]} 6. Bb3 {[%clk 0:03:02]}  d5 {[%clk 0:02:44]} 7. exd6 {[%clk 0:03:03]}  Qxd6 {[%clk 0:02:45]} 8. O-O {[%clk 0:03:03]}  c4 {[%clk 0:02:35]} 9. Bc2 {[%clk 0:03:03]}  Bg4 {[%clk 0:02:35]} 10. Re1 {[%clk 0:03:03]}  O-O-O {[%clk 0:02:33]} 11. b3 {[%clk 0:02:56]}  Qf6 {[%clk 0:02:32]} 12. Na3 {[%clk 0:02:47]}  Nd5 {[%clk 0:02:25]} 13. Bb2 {[%clk 0:02:01]}  Bxf3 {[%clk 0:02:11]} 14. Qxf3 {[%clk 0:02:00]}  Qxf3 {[%clk 0:02:11]} 15. gxf3 {[%clk 0:02:01]}  cxb3 {[%clk 0:02:10]} 16. axb3 {[%clk 0:02:02]}  e6 {[%clk 0:02:09]} 17. Nc4 {[%clk 0:01:48]}  a6 {[%clk 0:01:43]} 18. b4 {[%clk 0:01:43]}  Be7 {[%clk 0:01:38]} 19. d4 {[%clk 0:01:37]}  Kb8 {[%clk 0:01:28]} 20. Ne3 {[%clk 0:01:36]}  Bd6 {[%clk 0:01:09]} 21. Bd3 {[%clk 0:01:18]}  Nce7 {[%clk 0:00:55]} 22. b5 {[%clk 0:01:16]}  axb5 {[%clk 0:00:55]} 23. Bxb5 {[%clk 0:01:17]}  Nc7 {[%clk 0:00:46]} 24. Bf1 {[%clk 0:01:06]}  Kc8 {[%clk 0:00:34]} 25. Reb1 {[%clk 0:01:01]}  Kd7 {[%clk 0:00:33]} 26. c4 {[%clk 0:00:57]}  Rb8 {[%clk 0:00:28]} 27. Bc3 {[%clk 0:00:51]}  Rhc8 {[%clk 0:00:20]} 28. Ra7 {[%clk 0:00:36]}  b6 {[%clk 0:00:20]} 29. d5 {[%clk 0:00:34]}  exd5 {[%clk 0:00:20]} 30. Bh3+ {[%clk 0:00:35]}  Kd8 {[%clk 0:00:20]} 31. Bxg7 {[%clk 0:00:20]}  Ra8 {[%clk 0:00:17]} 32. Rxa8 {[%clk 0:00:07]}  Rxa8 {[%clk 0:00:18]} 33. cxd5 {[%clk 0:00:02]}  Bc5 {[%clk 0:00:16]} 34. Nc4 {[%clk 0:00:02]}  Nexd5 {[%clk 0:00:16]} 35. Rd1 {[%clk 0:00:02]}  Ke8 {[%clk 0:00:16]} 36. Ne5 {[%clk 0:00:02]}  f6 {[%clk 0:00:12]} 37. Nc6 {[%clk 0:00:01]}  Ra2 {[%clk 0:00:11]} 38. Bh6 {[%clk 0:00:01]}  Rxf2 {[%clk 0:00:11]} 39. Kh1 {[%clk 0:00:01]}  Rxf3 {[%clk 0:00:11]} 40. Bg2 {[%clk 0:00:01]}  Rf5 {[%clk 0:00:11]} 41. Re1+ {[%clk 0:00:01]}  Kf7 {[%clk 0:00:10]} 42. Nd8+ {[%clk 0:00:02]}  Kg6 {[%clk 0:00:09]} 43. Be4 {[%clk 0:00:02]}  Kxh6 {[%clk 0:00:07]} 44. Bxf5 {[%clk 0:00:02]}  Ne3 {[%clk 0:00:08]} 45. Be4 {[%clk 0:00:01]}  f5 {[%clk 0:00:08]} 46. Bd3 {[%clk 0:00:01]}  Kg5 {[%clk 0:00:08]} 47. Nf7+ {[%clk 0:00:01]}  Kf6 {[%clk 0:00:08]} 48. Nh6 {[%clk 0:00:00]}  Ncd5 {[%clk 0:00:08]} 0-1


[Site "https://www.chess.com"]

[Event "Titled Tuesday Blitz October 31 Early 2023"]
[White "djokovic74"]
[Black "Xu, Xiangyu"]
[BlackFideId "8608288"]
[WhiteElo "2714"]
[BlackElo "2922"]
[Result "1-0"]
[Round "5"]
[TimeControl "180+1"]
[Date "2023.10.31"]
[WhiteClock "0:00:02"]
[BlackClock "0:00:20"]
[Board "20"]

1. e4 {[%clk 0:03:00]}  c5 {[%clk 0:02:57]} 2. Nf3 {[%clk 0:03:01]}  d6 {[%clk 0:02:58]} 3. d4 {[%clk 0:03:02]}  cxd4 {[%clk 0:02:59]} 4. Nxd4 {[%clk 0:03:02]}  Nf6 {[%clk 0:02:59]} 5. Nc3 {[%clk 0:03:03]}  a6 {[%clk 0:03:00]} 6. Be2 {[%clk 0:03:04]}  e5 {[%clk 0:02:59]} 7. Nb3 {[%clk 0:03:04]}  Be7 {[%clk 0:02:59]} 8. O-O {[%clk 0:03:05]}  O-O {[%clk 0:02:58]} 9. Kh1 {[%clk 0:03:06]}  Nbd7 {[%clk 0:02:53]} 10. a4 {[%clk 0:03:03]}  b6 {[%clk 0:02:53]} 11. Be3 {[%clk 0:03:03]}  Bb7 {[%clk 0:02:53]} 12. f3 {[%clk 0:03:03]}  Rc8 {[%clk 0:02:53]} 13. Qd2 {[%clk 0:02:39]}  h5 {[%clk 0:02:24]} 14. Rfd1 {[%clk 0:02:27]}  h4 {[%clk 0:02:23]} 15. Bf1 {[%clk 0:02:27]}  Nh5 {[%clk 0:02:19]} 16. Qf2 {[%clk 0:02:15]}  f5 {[%clk 0:02:10]} 17. exf5 {[%clk 0:02:06]}  Rxf5 {[%clk 0:01:53]} 18. Bd3 {[%clk 0:01:44]}  Rf8 {[%clk 0:01:51]} 19. Bg6 {[%clk 0:01:41]}  Nf4 {[%clk 0:01:43]} 20. Bxf4 {[%clk 0:01:36]}  Rxf4 {[%clk 0:01:42]} 21. Be4 {[%clk 0:01:09]}  Bxe4 {[%clk 0:01:32]} 22. Nxe4 {[%clk 0:01:09]}  Qf8 {[%clk 0:01:33]} 23. Qe2 {[%clk 0:00:51]}  h3 {[%clk 0:01:33]} 24. g3 {[%clk 0:00:48]}  Rxf3 {[%clk 0:01:32]} 25. Rf1 {[%clk 0:00:49]}  Rf7 {[%clk 0:01:29]} 26. c3 {[%clk 0:00:35]}  d5 {[%clk 0:01:26]} 27. Nf2 {[%clk 0:00:35]}  e4 {[%clk 0:01:24]} 28. Nxh3 {[%clk 0:00:33]}  Ne5 {[%clk 0:01:24]} 29. Nd4 {[%clk 0:00:32]}  Bc5 {[%clk 0:01:22]} 30. Ng5 {[%clk 0:00:25]}  Rxf1+ {[%clk 0:01:20]} 31. Rxf1 {[%clk 0:00:26]}  Qe7 {[%clk 0:01:20]} 32. Qh5 {[%clk 0:00:24]}  g6 {[%clk 0:01:20]} 33. Qh3 {[%clk 0:00:24]}  Re8 {[%clk 0:01:11]} 34. Nde6 {[%clk 0:00:10]}  Nf3 {[%clk 0:01:11]} 35. Qh6 {[%clk 0:00:09]}  Ne5 {[%clk 0:00:59]} 36. Rf7 {[%clk 0:00:05]}  Qxf7 {[%clk 0:00:55]} 37. Nxf7 {[%clk 0:00:06]}  Kxf7 {[%clk 0:00:56]} 38. Nc7 {[%clk 0:00:04]}  Rd8 {[%clk 0:00:20]} 39. Qf4+ {[%clk 0:00:02]} 1-0


[Site "https://www.chess.com"]